bitfinex-derivatives/quotes_ETHF0:USTF0_20240830
["timestamp","ask_amount","ask_price","bid_price","bid_amount"]
[1725012313620,10.86958951,2523.2,2523.1,1.52145936]
[1725012314124,16.86958951,2523.2,2523.1,1.52145936]
[1725012314419,0.39638,2522.7,2522.6,1.04048266]
[1725012314616,0.39637,2522.8,2522.6,3.9784623]
[1725012314821,0.78357,2522.8,2522.7,2.54158964]
[1725012315018,5.25386333,2522.8,2522.7,2.90248964]
[1725012315222,4.86666333,2522.8,2522.7,3.66526964]
[1725012315435,4.47029333,2522.8,2522.7,3.66526964]
[1725012315616,4.47029333,2522.8,2522.7,4.7057523]
[1725012315920,0.39636,2522.8,2522.7,4.7057523]
[1725012316119,0.39636,2522.8,2522.7,3.26888964]
[1725012316321,4.88388814,2522.8,2522.7,3.26888964]
[1725012317214,4.88388814,2522.8,2522.7,2.62633146]
[1725012317410,4.88388814,2522.8,2522.7,1.74739286]
[1725012317811,4.88388814,2522.8,2522.7,1.74738318]
[1725012318617,4.88388814,2522.8,2522.7,2.14376318]
[1725012320733,4.88388814,2522.8,2522.7,1.12368]
[1725012321926,4.48752814,2522.8,2522.7,1.12368]
[1725012322218,0.39637,2522.8,2522.7,0.6085191]
[1725012322613,4.24475759,2522.8,2522.7,1.0048991]
[1725012322816,4.64111759,2522.8,2522.7,1.0048991]
[1725012324511,4.64111759,2522.8,2522.7,0.39638]
[1725012325525,0.39638,2522.7,2522.6,0.39638]
[1725012325719,4.64112759,2522.8,2522.7,0.39638]
[1725012326227,4.24475759,2522.8,2522.7,0.39638]
[1725012326716,0.3852,2523.0,2522.7,7.50405595]
[1725012326717,0.39633,2523.0,2522.7,7.50405595]
[1725012326924,0.39634,2522.9,2522.8,0.7208]
[1725012327121,0.78814,2523.0,2522.8,1.50845]
[1725012327517,0.78814,2523.0,2522.9,0.60836233]
[1725012327711,0.3918,2523.0,2522.9,1.00470233]
[1725012327927,0.78813,2523.0,2522.9,1.00470233]
[1725012329221,0.78813,2523.0,2522.9,0.39634]
[1725012329862,0.78813,2523.0,2522.9,1.00462289]
[1725012330333,0.78813,2523.0,2522.9,0.39634]
[1725012330343,0.3918,2523.0,2522.9,1.41597596]
[1725012331422,0.3918,2523.0,2522.9,1.4159572]
[1725012331827,0.78813,2523.0,2522.9,1.4159572]
[1725012332518,0.78813,2523.0,2522.9,1.41597039]
[1725012332733,4.99423886,2523.0,2522.9,0.60827176]
[1725012333218,5.71363886,2523.0,2522.9,0.60827176]
[1725012333625,5.71363886,2523.0,2522.9,1.41599946]
[1725012333930,5.35523886,2523.0,2522.9,1.41599946]
[1725012334116,4.99423886,2523.0,2522.9,1.41599946]
[1725012334430,4.60243886,2523.0,2522.9,2.29455022]
[1725012336129,4.20610886,2523.0,2522.9,3.33269644]
[1725012336320,3.20917741,2523.0,2522.9,11.46763544]
[1725012336526,0.3816,2523.3,2522.9,7.10711373]
[1725012336752,0.39631,2523.1,2523.0,0.4113877]
[1725012336923,0.39631,2523.1,2523.0,1.89804189]
[1725012337123,0.39631,2523.1,2523.0,1.01959366]
[1725012338024,5.22846493,2523.1,2523.0,0.60820596]
[1725012339137,4.83215493,2523.1,2522.8,2.54697424]
[1725012339430,0.77793,2523.0,2522.9,0.6084589]
[1725012340922,1.76876,2523.0,2522.9,0.6084589]
[1725012341325,5.73276,2523.0,2522.9,0.6084589]
[1725012341530,10.13863742,2523.0,2522.9,0.6084589]
[1725012341831,1.38738,2522.6,2522.5,0.00593859]
[1725012342027,2.81738,2522.6,2522.5,0.61449548]
[1725012342234,5.79325742,2522.6,2522.5,0.61449548]
[1725012342439,6.17095742,2522.6,2522.5,0.61449548]
[1725012342737,6.17095742,2522.6,2522.5,0.00593859]
[1725012342929,6.17095742,2522.6,2522.5,0.61451852]
[1725012343233,6.17095742,2522.6,2522.5,0.00593859]
[1725012346130,9.37875742,2522.6,2522.5,0.00593859]
[1725012348132,9.37875742,2522.6,2522.5,0.61451213]
[1725012349436,7.61367742,2522.6,2522.5,2.04943637]
[1725012349733,7.61367742,2522.6,2522.5,3.18909429]
[1725012349938,7.61367742,2522.6,2522.5,4.06804078]
[1725012351240,7.61367742,2522.6,2522.5,3.65648286]
[1725012351332,8.01006742,2522.6,2522.5,4.06804002]
[1725012352624,8.01006742,2522.6,2522.5,2.16896283]
[1725012352843,8.01006742,2522.6,2522.5,4.06802431]
[1725012354964,8.01006742,2522.6,2522.5,4.06802775]
[1725012356343,8.01006742,2522.6,2522.5,8.24005915]
[1725012356837,8.01006742,2522.6,2522.5,6.68237434]
[1725012357040,8.01006742,2522.6,2522.5,8.24005915]
[1725012359539,7.61367742,2522.6,2522.5,8.24005915]
[1725012360137,8.01006742,2522.6,2522.5,8.24005915]
[1725012360333,8.01006742,2522.6,2522.5,8.24007098]
[1725012361348,4.19859,2523.1,2522.5,20.12390727]
[1725012361548,0.39634,2523.0,2522.9,0.39633]
[1725012361745,4.94115201,2523.0,2522.9,5.76902325]
[1725012362845,4.94115201,2523.0,2522.9,7.75135661]
[1725012363837,4.54481201,2523.0,2522.9,12.23575543]
[1725012364046,0.3847,2523.2,2523.1,0.39631]
[1725012364352,4.8949629,2523.2,2523.1,6.98841497]
[1725012364650,4.8949629,2523.2,2523.1,5.94777856]
[1725012365256,4.5102629,2523.2,2523.1,7.50873318]
[1725012365550,4.5102629,2523.2,2523.1,7.50861695]
[1725012365750,4.5102629,2523.2,2523.1,7.50852305]
[1725012366349,0.78097,2523.4,2523.3,0.39628]
[1725012366655,0.78097,2523.4,2523.3,3.85617366]
[1725012366846,0.78097,2523.4,2523.3,5.83816705]
[1725012367054,0.78097,2523.4,2523.3,4.70010213]
[1725012367400,0.78097,2523.4,2523.3,6.5987487]
[1725012367940,0.78097,2523.4,2523.3,4.70010213]
[1725012368051,0.78097,2523.4,2523.3,5.71998422]
[1725012368352,0.78097,2523.4,2523.3,3.76287548]
[1725012368546,0.78097,2523.4,2523.3,5.32370422]
[1725012368741,0.78097,2523.4,2523.3,4.39197784]
[1725012368945,0.78097,2523.4,2523.3,5.32370714]
[1725012369153,0.78097,2523.4,2523.3,5.71998714]
[1725012369349,0.78097,2523.4,2523.3,4.1591584]
[1725012369741,0.78097,2523.4,2523.3,5.71998714]
[1725012369942,0.78097,2523.4,2523.3,4.1591584]
[1725012370257,0.78097,2523.4,2523.3,5.71998714]
[1725012370547,0.3847,2523.4,2523.3,5.71998873]
[1725012370750,0.77248859,2523.6,2523.5,0.39625]
[1725012371052,1.13788859,2523.6,2523.5,4.43849801]
[1725012371431,1.13788859,2523.6,2523.5,3.93888443]
[1725012371432,0.37133859,2523.6,2523.5,3.93888443]
[1725012371502,0.37133859,2523.6,2523.5,4.95872014]
[1725012371755,0.37133859,2523.6,2523.5,5.83742638]
[1725012371955,0.00593859,2523.6,2523.5,5.83742638]
[1725012372453,0.00593859,2523.6,2523.5,7.68719195]
[1725012372748,0.00593859,2523.6,2523.5,13.11999396]
[1725012373052,0.00593859,2523.6,2523.5,13.12000633]
[1725012373251,0.00593859,2523.6,2523.5,14.68074761]
[1725012373464,0.00593859,2523.6,2523.5,11.3384732]
[1725012373644,0.00593859,2523.6,2523.5,10.39470496]
[1725012374668,0.00593859,2523.6,2523.5,12.3763571]
[1725012374950,0.00593859,2523.6,2523.5,17.8885281]
[1725012375156,0.00593859,2523.6,2523.5,16.32778682]
[1725012375351,0.00593859,2523.6,2523.5,17.88476238]
[1725012375654,0.00593859,2523.6,2523.5,17.88429929]
[1725012375959,0.00593859,2523.6,2523.5,16.32778682]
[1725012376458,0.00593859,2523.6,2523.5,17.88413319]
[1725012376856,0.00593859,2523.6,2523.5,17.09325727]
[1725012377158,0.00593859,2523.6,2523.5,22.32778221]
[1725012377357,0.00238914,2523.6,2523.5,25.98670318]
[1725012377551,0.00238914,2523.6,2523.5,18.47493049]
[1725012377858,0.00238914,2523.6,2523.5,18.47492692]
[1725012378336,0.00238914,2523.6,2523.5,15.89131279]
[1725012378387,0.00238914,2523.6,2523.5,21.48855628]
[1725012378559,0.00238914,2523.6,2523.5,22.71942713]
[1725012378952,0.00238914,2523.6,2523.5,29.95096429]
[1725012378953,9.14e-06,2523.6,2523.5,29.95096429]
[1725012379151,9.14e-06,2523.6,2523.5,27.87380892]
[1725012379539,0.3931,2524.4,2524.3,0.39612]
[1725012379782,0.3931,2524.4,2524.3,1.82612]
[1725012379868,0.3931,2524.4,2524.3,2.43435831]
[1725012381474,0.3931,2524.4,2524.3,1.82612]
[1725012381550,0.3931,2524.4,2524.3,2.43438185]
[1725012383612,0.3931,2524.4,2524.3,1.82612]
[1725012384058,0.3931,2524.4,2524.3,2.43439193]
[1725012384259,0.3931,2524.4,2524.3,1.82612]
[1725012384572,0.39614,2524.2,2524.1,0.00593859]
[1725012384870,9.39512523,2524.2,2524.1,0.00593859]
[1725012385135,9.39512523,2524.2,2523.7,1.27482537]
[1725012385136,0.3962,2523.8,2523.7,0.87861537]
[1725012385367,4.92770913,2523.8,2523.5,0.39625]
[1725012385660,0.7772,2523.7,2523.6,0.60838046]
[1725012386057,5.30869913,2523.7,2523.6,0.60838046]
[1725012386561,5.70491913,2523.7,2523.6,0.60838046]
[1725012386764,5.30869913,2523.7,2523.6,0.60838046]
[1725012387863,5.70491913,2523.7,2523.6,0.60838046]
[1725012388052,5.70491913,2523.7,2523.5,1.43]
[1725012388458,5.70491913,2523.7,2523.6,0.60839753]
[1725012388960,0.39625,2523.5,2523.4,0.00593859]
[1725012389181,0.39625,2523.5,2523.4,0.61435856]
[1725012389358,4.57633575,2523.5,2523.4,0.61435856]
[1725012391065,4.57633575,2523.5,2523.4,0.00593859]
[1725012391561,4.18008575,2523.5,2523.4,0.00593859]
[1725012391763,0.77194,2523.6,2523.4,1.42205058]
[1725012391764,0.39624,2523.6,2523.4,1.42205058]
[1725012391958,0.39624,2523.6,2523.5,0.60842815]
[1725012392963,0.39623,2523.6,2523.5,0.60842815]
[1725012393165,4.38123,2523.7,2523.5,0.60842815]
[1725012393354,4.38123,2523.7,2523.6,0.60842815]
[1725012393754,8.59126548,2523.7,2523.6,0.60842815]
[1725012394060,0.39625,2523.6,2523.4,0.00593859]
[1725012394254,0.39625,2523.6,2523.5,0.60841076]
[1725012394704,0.39625,2523.6,2523.4,0.40219859]
[1725012394877,0.39625,2523.6,2523.5,0.60841302]
[1725012395665,0.39625,2523.6,2523.5,1.01982602]
[1725012396067,0.39625,2523.6,2523.5,0.60841302]
[1725012396265,0.39625,2523.6,2523.5,1.01982443]
[1725012397275,0.39625,2523.6,2523.5,0.60841302]
[1725012398299,8.19503548,2523.7,2523.4,0.00593859]
[1725012398300,0.39625,2523.5,2523.4,0.00593859]
[1725012398394,10.26063399,2523.5,2523.4,0.00593859]
[1725012398554,14.22383399,2523.5,2523.4,0.00593859]
[1725012399269,0.39634,2522.9,2522.7,42.5692047]
[1725012399456,0.3873,2522.8,2522.7,41.92898]
[1725012399655,0.3873,2522.8,2522.7,47.39552403]
[1725012399862,0.3873,2522.8,2522.7,47.79190403]
[1725012400058,0.3873,2522.8,2522.7,47.39552403]
[1725012400260,0.3873,2522.8,2522.7,6.11301319]
[1725012400764,0.00593859,2523.0,2522.7,6.59547277]
[1725012401072,0.00593859,2523.0,2522.9,3.42]
[1725012401272,0.00593859,2523.0,2522.9,4.02850839]
[1725012402169,0.00593859,2523.0,2522.9,4.42484839]
[1725012402465,0.00593859,2523.0,2522.9,17.34894595]
[1725012402672,0.00593859,2523.0,2522.9,16.3215519]
[1725012403162,0.00593859,2523.0,2522.9,57.1215519]
[1725012403569,0.00593859,2523.0,2522.9,57.12156085]
[1725012404174,0.00593859,2523.0,2522.9,51.12156085]
[1725012404700,0.00593859,2523.0,2522.9,49.63424206]
[1725012404775,0.00593859,2523.0,2522.9,50.4790813]
[1725012407780,0.00593859,2523.0,2522.9,48.58034]
[1725012408084,0.00593859,2523.0,2522.9,50.47911412]
[1725012409369,0.00593859,2523.0,2522.9,53.68691412]
[1725012410468,0.00593859,2523.0,2522.9,50.47911412]
[1725012411374,0.00593859,2523.0,2522.9,53.6868665]
[1725012412162,0.00593859,2523.0,2522.9,49.7228665]
[1725012412480,0.00593859,2523.0,2522.9,46.5150665]
[1725012412770,0.00593859,2523.0,2522.9,49.7228665]
[1725012412964,0.00593859,2523.0,2522.9,53.6868665]
[1725012413766,0.00593859,2523.0,2522.9,49.7228665]
[1725012414674,0.00593859,2523.0,2522.9,46.5150665]
[1725012415574,0.40226859,2523.0,2522.9,43.0950665]
[1725012415876,0.40226859,2523.0,2522.9,1.8987265]
[1725012416367,0.40226859,2523.0,2522.9,1.01993159]
[1725012416578,0.40226859,2523.0,2522.9,0.60844842]
[1725012417686,0.40226859,2523.0,2522.8,41.19636]
[1725012417687,0.39634,2522.9,2522.8,41.19636]
[1725012417893,0.39634,2522.9,2522.8,41.60786391]
[1725012418067,0.39634,2522.9,2522.8,47.05920887]
[1725012418360,0.39634,2522.9,2522.8,6.25920887]
[1725012418768,0.40226859,2523.0,2522.9,0.39634]
[1725012418967,0.40226859,2523.0,2522.9,2.29518887]
[1725012419191,0.40226859,2523.0,2522.9,1.00482752]
[1725012420814,0.40226859,2523.0,2522.9,1.0048082]
[1725012421473,0.40226859,2523.0,2522.9,1.41629243]
[1725012421674,0.40226859,2523.0,2522.9,1.41629221]
[1725012421870,0.00593859,2523.0,2522.9,1.41629221]
[1725012422066,0.00593859,2523.0,2522.9,2.84628952]
[1725012422282,0.00593859,2523.0,2522.9,3.72511011]
[1725012422577,0.00593859,2523.0,2522.9,8.33153622]
[1725012422769,0.00593859,2523.0,2522.9,7.68911011]
[1725012423323,0.00593859,2523.0,2522.9,14.67991124]
[1725012423571,0.00593859,2523.0,2522.9,15.32224295]
[1725012423772,0.00593859,2523.0,2522.9,56.12224295]
[1725012423963,0.00593859,2523.0,2522.9,57.1496485]
[1725012424176,0.00593859,2523.0,2522.9,57.14964957]
[1725012424887,0.76856,2523.5,2523.3,0.39627]
[1725012425177,4.17731642,2523.4,2523.3,0.39627]
[1725012425369,4.17731642,2523.4,2523.3,1.38067844]
[1725012425570,4.17731642,2523.4,2523.3,1.77337844]
[1725012426174,4.57358642,2523.4,2523.3,1.37710844]
[1725012427077,5.56425642,2523.4,2523.3,0.60841367]
[1725012427283,4.17731642,2523.4,2523.3,1.00469367]
[1725012427470,4.17731642,2523.4,2523.3,2.43469367]
[1725012428075,4.17731642,2523.4,2523.3,3.72486744]
[1725012428382,4.57358642,2523.4,2523.3,3.72486744]
[1725012428785,4.57358642,2523.4,2523.3,1.89858744]
[1725012429087,4.57358642,2523.4,2523.3,0.60841367]
[1725012429285,4.93008642,2523.4,2523.3,1.01985327]
[1725012429485,5.31838642,2523.4,2523.3,1.8986077]
[1725012430090,0.39628,2523.3,2523.2,1.4328947]
[1725012430384,0.39628,2523.3,2523.2,5.00137678]
[1725012430776,5.31838642,2523.4,2523.3,0.39628]
[1725012430976,0.3723,2523.5,2523.3,3.96469592]
[1725012431182,0.39627,2523.4,2523.3,0.39628]
[1725012431381,0.39627,2523.4,2523.3,3.96461554]
[1725012431680,0.3723,2523.5,2523.4,0.39627]
[1725012431681,0.76856,2523.5,2523.4,0.39627]
[1725012431883,0.3723,2523.5,2523.4,2.93721455]
[1725012432082,0.3723,2523.5,2523.4,3.96456056]
[1725012432284,0.3723,2523.5,2523.4,5.39456056]
[1725012432585,0.00593859,2523.6,2523.5,0.39625]
[1725012432780,0.78826859,2523.6,2523.5,2.93719455]
[1725012433387,0.39203859,2523.6,2523.5,0.39625]
[1725012433610,0.39203859,2523.6,2523.5,2.9370688]
[1725012433983,0.78826859,2523.6,2523.5,2.9370688]
[1725012434487,0.39203859,2523.6,2523.5,2.9370688]
[1725012435180,0.00593859,2523.6,2523.5,3.9276988]
[1725012435488,0.00593859,2523.6,2523.5,5.32831985]
[1725012435986,0.00593859,2523.6,2523.5,9.29071985]
[1725012436288,0.00593859,2523.6,2523.5,10.08161975]
[1725012436684,0.00593859,2523.6,2523.5,9.29055042]
[1725012436888,0.00593859,2523.6,2523.5,10.08145204]
[1725012437180,0.00593859,2523.6,2523.5,9.29055042]
[1725012437387,0.00593859,2523.6,2523.5,10.08145284]
[1725012437585,0.00593859,2523.6,2523.5,9.29055042]
[1725012437974,0.00593859,2523.6,2523.5,6.77624015]
[1725012438086,0.00593859,2523.6,2523.5,10.08145035]
[1725012438289,0.00593859,2523.6,2523.5,10.08143707]
[1725012438885,0.00593859,2523.6,2523.5,11.07206707]
[1725012439708,0.3826,2523.9,2523.8,1.38672]
[1725012439880,0.3826,2523.9,2523.8,4.71512418]
[1725012440104,0.3826,2523.9,2523.8,6.10632288]
[1725012440282,0.3826,2523.9,2523.8,46.90632288]
[1725012440484,0.3826,2523.9,2523.8,46.26412418]
[1725012440693,0.3826,2523.9,2523.8,46.90631998]
[1725012441183,0.3826,2523.9,2523.8,46.26412418]
[1725012443344,0.3826,2523.9,2523.8,46.26400615]
[1725012443992,0.3826,2523.9,2523.8,45.27348615]
[1725012444390,0.3826,2523.9,2523.8,4.09728615]
[1725012444586,0.77879,2523.9,2523.8,1.41587886]
[1725012444785,0.77879,2523.9,2523.8,1.01967886]
[1725012445035,0.77879,2523.9,2523.8,1.41592146]
[1725012445286,0.77879,2523.9,2523.8,1.41592015]
[1725012445487,0.77879,2523.9,2523.8,1.01972015]
[1725012445898,0.77879,2523.9,2523.8,1.41592015]
[1725012446088,0.77879,2523.9,2523.8,1.00455242]
[1725012446286,0.77879,2523.9,2523.8,1.41591405]
[1725012446595,0.77879,2523.9,2523.8,1.4159179]
[1725012446995,0.77879,2523.9,2523.8,1.0197179]
[1725012447492,0.77879,2523.9,2523.8,1.4159179]
[1725012448596,1.76927,2523.9,2523.8,0.60835242]
[1725012449385,5.73167,2523.9,2523.8,0.60835242]
[1725012449600,21.95412973,2523.9,2523.8,0.60835242]
[1725012449899,21.95412973,2523.9,2523.4,6.7251]
[1725012449900,0.39625,2523.5,2523.4,6.7251]
[1725012450100,0.39625,2523.5,2523.4,5.10639801]
[1725012450295,5.65971168,2523.5,2523.4,5.10639801]
[1725012450601,5.65971168,2523.5,2523.4,8.64298021]
[1725012451094,5.65971168,2523.5,2523.4,9.03924021]
[1725012451290,5.65971168,2523.5,2523.4,7.48433316]
[1725012451897,5.65971168,2523.5,2523.4,6.5412848]
[1725012452603,5.65971168,2523.5,2523.4,6.93265801]
[1725012452806,0.39621,2523.8,2523.7,0.39622]
[1725012453112,0.39621,2523.8,2523.7,1.43]
[1725012453113,0.77761,2523.8,2523.7,1.43]
[1725012453306,0.77761,2523.8,2523.7,0.6083652]
[1725012453706,0.39622,2523.7,2523.6,1.82623]
[1725012453894,0.39622,2523.7,2523.6,3.72467755]
[1725012455807,0.39622,2523.7,2523.6,1.89844755]
[1725012456390,0.39622,2523.7,2523.6,1.01976852]
[1725012456500,5.34917,2523.7,2523.6,1.01976852]
[1725012456716,9.53357454,2523.7,2523.6,1.01976852]
[1725012457596,9.53357454,2523.7,2523.6,1.89846059]
[1725012457997,9.53357454,2523.7,2523.6,1.01976852]
[1725012459202,9.53357454,2523.7,2523.6,1.89845814]
[1725012459420,0.39623,2523.6,2523.5,1.43494118]
[1725012459724,0.39623,2523.6,2523.5,1.84634182]
[1725012459804,4.53540539,2523.6,2523.5,2.45472582]
[1725012460009,4.53540539,2523.6,2523.5,2.29472651]
[1725012460506,4.53540539,2523.6,2523.5,3.33341769]
[1725012461315,0.39623,2523.6,2523.5,5.95744195]
[1725012461609,0.39623,2523.6,2523.5,3.97572132]
[1725012461805,0.39623,2523.6,2523.5,3.33341769]
[1725012461998,0.39619,2523.9,2523.8,0.3962]
[1725012462199,0.39619,2523.9,2523.8,1.41598464]
[1725012462505,4.57287223,2523.9,2523.8,1.41598464]
[1725012462946,4.57287223,2523.9,2523.8,0.3962]
[1725012463182,4.57287223,2523.9,2523.8,0.80757396]
[1725012463407,4.57287223,2523.9,2523.8,2.2945768]
[1725012466532,1.38672,2523.8,2523.7,1.39399223]
[1725012466610,1.38672,2523.8,2523.6,2.19761223]
[1725012466611,0.39622,2523.7,2523.6,2.19761223]
[1725012466810,0.78332,2523.7,2523.6,4.73837985]
[1725012467006,0.78332,2523.7,2523.6,5.76568155]
[1725012467704,0.39622,2523.8,2523.7,0.39622]
[1725012467902,0.39622,2523.8,2523.7,2.29468218]
[1725012468103,0.39622,2523.8,2523.7,3.97550936]
[1725012468708,0.39622,2523.8,2523.7,5.00277146]
[1725012469015,0.39622,2523.8,2523.7,2.93695272]
[1725012469214,0.39622,2523.8,2523.7,3.96422687]
[1725012469415,0.39622,2523.8,2523.7,5.00278351]
[1725012469787,0.39622,2523.8,2523.7,1.43477664]
[1725012469899,0.39622,2523.8,2523.7,3.9641537]
[1725012470014,0.39622,2523.8,2523.7,2.93688004]
[1725012470317,0.39622,2523.8,2523.7,3.96415679]
[1725012471011,0.39622,2523.8,2523.7,2.93688004]
[1725012471210,0.39622,2523.8,2523.7,3.96416362]
[1725012472118,0.39622,2523.8,2523.7,3.96416232]
[1725012472843,0.39622,2523.8,2523.7,0.39622]
[1725012473152,0.39622,2523.8,2523.7,1.4498847]
[1725012473228,0.39622,2523.8,2523.7,3.96419919]
[1725012479820,0.39622,2523.8,2523.7,5.00336957]
[1725012480021,0.7504,2523.9,2523.8,0.3962]
[1725012480216,0.00593859,2524.1,2524.0,0.39617]
[1725012480418,0.00593859,2524.1,2524.0,2.29458044]
[1725012480617,4.13955133,2524.1,2524.0,2.29458044]
[1725012480817,4.13955133,2524.1,2524.0,4.70989853]
[1725012481014,4.13955133,2524.1,2524.0,6.73950891]
[1725012481214,4.13955133,2524.1,2524.0,10.03128918]
[1725012482003,4.13955133,2524.1,2524.0,11.34990786]
[1725012482006,0.00593859,2524.1,2524.0,11.34990786]
[1725012482017,0.00593859,2524.1,2524.0,20.7952239]
[1725012482025,0.00593859,2524.1,2524.0,21.65300614]
[1725012482224,0.00593859,2524.1,2524.0,23.72918408]
[1725012482225,0.00238948,2524.1,2524.0,23.72918408]
[1725012482524,0.00238948,2524.1,2524.0,64.52914177]
[1725012482818,0.00238948,2524.1,2524.0,60.56689532]
[1725012483226,0.00238948,2524.1,2524.0,58.49058474]
[1725012484118,0.00238948,2524.1,2524.0,60.04652093]
[1725012484324,0.00238948,2524.1,2524.0,59.42742351]
[1725012484727,0.00238948,2524.1,2524.0,54.47538351]
[1725012485155,0.00238948,2524.1,2524.0,50.93805993]
[1725012485216,0.00238948,2524.1,2524.0,51.78054388]
[1725012485420,4.80411505,2524.1,2524.0,3.56743483]
[1725012485830,4.80411505,2524.1,2524.0,1.89813821]
[1725012486129,5.19251505,2524.1,2524.0,1.89813821]
[1725012487525,10.14451505,2524.1,2524.0,1.89813821]
[1725012488245,10.14451505,2524.1,2524.0,0.41130669]
[1725012488450,10.14451505,2524.1,2524.0,1.89826399]
[1725012489215,12.56491505,2524.1,2524.0,1.89826399]
[1725012489418,12.56491505,2524.1,2524.0,0.60833838]
[1725012490717,2.37715,2523.9,2523.8,0.00593859]
[1725012490919,1.98104,2523.8,2523.2,1.03712744]
[1725012491117,1.98104,2523.8,2523.1,1.55593619]
[1725012491118,1.38694,2523.4,2523.3,1.01986862]
[1725012491317,1.38694,2523.4,2523.3,0.60842604]
[1725012491518,1.38694,2523.4,2522.8,1.78768744]
[1725012491519,0.39634,2523.0,2522.8,1.78768744]
[1725012491714,0.39634,2523.0,2522.9,2.54133277]
[1725012491931,0.39634,2523.0,2522.9,1.8988534]
[1725012492121,8.53474932,2523.0,2522.9,1.8988534]
[1725012492324,4.17440932,2523.0,2522.9,2.5412881]
[1725012492526,8.53473932,2523.0,2522.9,1.8988534]
[1725012493026,8.53473932,2523.0,2522.9,1.66248107]
[1725012493218,4.57073932,2523.0,2522.9,1.01999401]
[1725012493528,4.17440932,2523.0,2522.9,1.01999401]
[1725012493923,4.57073932,2523.0,2522.9,1.01999401]
[1725012494242,4.17440932,2523.0,2522.9,1.01999401]
[1725012494884,4.17440932,2523.0,2522.9,0.41151169]
[1725012495244,4.57073932,2523.0,2522.9,0.60836835]
[1725012495252,4.17440932,2523.0,2522.9,1.41622252]
[1725012495530,4.17440932,2523.0,2522.9,1.01988252]
[1725012496326,4.57073932,2523.0,2522.9,1.01988252]
[1725012496515,4.57073932,2523.0,2522.9,1.01988044]
[1725012497631,4.17440932,2523.0,2522.9,1.01988044]
[1725012497948,4.17440932,2523.0,2522.9,1.41622044]
[1725012498166,4.57073932,2523.0,2522.8,0.75055]
[1725012498321,4.57073932,2523.0,2522.9,1.41618296]
[1725012498933,4.57073932,2523.0,2522.9,1.01984296]
[1725012499953,4.57073932,2523.0,2522.9,0.39634]
[1725012500145,4.57073932,2523.0,2522.9,0.80783636]
[1725012500320,4.57073932,2523.0,2522.9,1.41618936]
[1725012500524,4.17440932,2523.0,2522.9,1.41618936]
[1725012500835,4.57073932,2523.0,2522.9,1.41618936]
[1725012501452,4.17440932,2523.0,2522.9,0.39634]
[1725012501763,4.17440932,2523.0,2522.9,0.80783258]
[1725012501821,4.17440932,2523.0,2522.9,1.41618179]
[1725012502431,4.57073932,2523.0,2522.9,1.41618179]
[1725012502631,5.56156932,2523.0,2522.9,1.01984179]
[1725012502840,0.39636,2522.8,2522.7,0.00593859]
[1725012503022,0.39644,2522.3,2522.2,40.8]
[1725012503236,0.39644,2522.3,2522.2,1.01999666]
[1725012503428,4.77808141,2522.3,2522.2,0.60842769]
[1725012503730,4.38164141,2522.3,2522.2,1.00487769]
[1725012504033,0.39643,2522.4,2522.2,1.00487769]
[1725012504240,0.39643,2522.4,2522.1,0.78006]
[1725012504444,4.30828225,2522.3,2522.1,0.78006]
[1725012504938,4.30828225,2522.3,2522.2,0.39645]
[1725012505331,4.53280883,2522.4,2522.2,0.39645]
[1725012505638,0.00593859,2522.5,2522.4,0.39642]
[1725012505936,0.00593859,2522.5,2522.3,0.39643]
[1725012506936,0.00593859,2522.5,2522.4,0.39642]
[1725012507129,0.00593859,2522.5,2522.3,0.39643]
[1725012507329,0.00593859,2522.5,2522.4,0.39642]
[1725012507729,0.00593859,2522.5,2522.3,0.39643]
[1725012508129,0.00593859,2522.5,2522.4,0.39642]
[1725012509142,0.00593859,2522.5,2522.3,0.39643]
[1725012509344,0.00593859,2522.5,2522.4,0.39642]
[1725012513833,0.40234859,2522.5,2522.4,0.39642]
[1725012514034,0.40234859,2522.5,2522.3,0.39643]
[1725012514229,0.76714859,2522.5,2522.3,0.39643]
[1725012516447,0.76714859,2522.5,2522.2,0.39645]
[1725012516448,0.39644,2522.4,2522.2,0.39645]
[1725012516763,0.39645,2522.2,2522.1,0.3836]
[1725012517050,0.39647,2522.1,2522.0,3.21373859]
[1725012517250,1.75635,2522.1,2522.0,3.21373859]
[1725012518342,0.76517,2522.1,2522.0,3.61022859]
[1725012518542,0.39647,2522.1,2522.0,3.61022859]
[1725012519046,0.39647,2522.1,2522.0,3.21373859]
[1725012519648,0.39647,2522.1,2522.0,3.61022859]
[1725012519851,0.39647,2522.2,2522.0,3.61022859]
[1725012520346,0.39647,2522.1,2522.0,3.61022859]
[1725012521095,4.82498028,2522.2,2522.0,3.61022859]
[1725012521349,0.39647,2522.1,2522.0,3.61022859]
[1725012522142,4.82498028,2522.2,2522.0,3.61022859]
[1725012522448,4.82498028,2522.2,2522.1,0.39647]
[1725012523542,4.42851028,2522.2,2522.1,0.39647]
[1725012523843,0.40235859,2522.5,2522.1,8.38597]
[1725012524261,0.40235859,2522.5,2522.3,0.39642]
[1725012524535,0.00593859,2522.5,2522.4,0.39642]
[1725012524942,0.40234859,2522.5,2522.4,0.39642]
[1725012525148,0.40234859,2522.5,2522.3,0.39643]
[1725012525336,0.40234859,2522.5,2522.1,4.42117]
[1725012525651,0.40234859,2522.5,2522.4,0.39642]
[1725012526351,4.48414366,2522.5,2522.2,0.39644]
[1725012526649,4.48414366,2522.5,2522.0,3.21373859]
[1725012526650,0.39644,2522.4,2522.0,3.21373859]
[1725012526949,4.30138085,2522.3,2522.2,0.39644]
[1725012530055,4.30138085,2522.3,2522.2,4.36124]
[1725012530349,0.40234859,2522.5,2522.3,0.39643]
[1725012530549,0.40234859,2522.5,2522.4,1.0845]
[1725012531157,0.00593859,2522.5,2522.4,1.48092]
[1725012531346,0.00593859,2522.5,2522.4,1.0845]
[1725012531543,0.00593859,2522.5,2522.4,1.48092]
[1725012532549,0.00593859,2522.5,2522.4,0.39642]
[1725012532741,4.24497563,2522.5,2522.4,0.39642]
[1725012533649,0.00593859,2522.5,2522.4,0.39642]
[1725012534351,0.00593859,2522.5,2522.4,1.00483922]
[1725012535454,0.00593859,2522.5,2522.4,1.41640286]
[1725012536357,0.00593859,2522.5,2522.4,2.29520125]
[1725012537428,0.00593859,2522.5,2522.4,2.2952009]
[1725012537553,0.40234859,2522.5,2522.4,2.2952009]
[1725012537852,0.00593859,2522.5,2522.4,2.2952009]
[1725012538055,0.40234859,2522.5,2522.4,2.2952009]
[1725012538350,0.40234859,2522.5,2522.4,2.93776237]
[1725012538351,0.00593859,2522.5,2522.4,2.93776237]
[1725012538854,0.00593859,2522.5,2522.4,2.2952009]
[1725012539354,0.00593859,2522.5,2522.4,2.93777762]
[1725012540634,0.00593859,2522.5,2522.4,2.48767673]